[Event "Titled Tuesday Blitz March 21 Early 2023"]
[White "Zhigalko, Sergei"]
[Black "Shimanov, Aleksandr"]
[WhiteFideId "13502956"]
[BlackFideId "4198603"]
[WhiteElo "2626"]
[BlackElo "2631"]
[Result "1-0"]
[Round "07"]
[TimeControl "180+2"]
[Date "2023.03.21"]
[WhiteClock "0:00:02"]
[BlackClock "0:00:05"]

1. e4 {[%clk 0:03:00]}  e5 {[%clk 0:02:37]} 2. Nf3 {[%clk 0:03:00]}  Qe7 {[%clk 0:02:36]} 3. Bc4 {[%clk 0:02:50]}  d6 {[%clk 0:02:35]} 4. O-O {[%clk 0:02:48]}  Bg4 {[%clk 0:02:34]} 5. c3 {[%clk 0:02:39]}  Nf6 {[%clk 0:02:33]} 6. Re1 {[%clk 0:02:37]}  Nc6 {[%clk 0:02:25]} 7. a4 {[%clk 0:02:26]}  g6 {[%clk 0:02:06]} 8. h3 {[%clk 0:02:21]}  Bd7 {[%clk 0:02:03]} 9. d4 {[%clk 0:02:07]}  Bg7 {[%clk 0:02:02]} 10. Nbd2 {[%clk 0:01:52]}  O-O {[%clk 0:01:58]} 11. Nf1 {[%clk 0:01:49]}  h6 {[%clk 0:01:54]} 12. Ng3 {[%clk 0:01:48]}  a5 {[%clk 0:01:52]} 13. Be3 {[%clk 0:01:25]}  Kh7 {[%clk 0:01:34]} 14. Bd3 {[%clk 0:01:14]}  Rae8 {[%clk 0:01:32]} 15. Rc1 {[%clk 0:01:08]}  Qd8 {[%clk 0:01:25]} 16. Bb1 {[%clk 0:00:58]}  Qc8 {[%clk 0:01:22]} 17. Kh2 {[%clk 0:00:55]}  b6 {[%clk 0:01:17]} 18. Qd2 {[%clk 0:00:53]}  Nd8 {[%clk 0:01:15]} 19. b3 {[%clk 0:00:49]}  Ng8 {[%clk 0:01:02]} 20. Rcd1 {[%clk 0:00:48]}  Re7 {[%clk 0:00:59]} 21. Bd3 {[%clk 0:00:39]}  Ne6 {[%clk 0:00:55]} 22. Qc1 {[%clk 0:00:38]}  Kh8 {[%clk 0:00:49]} 23. Bc4 {[%clk 0:00:38]}  Nd8 {[%clk 0:00:41]} 24. Qc2 {[%clk 0:00:29]}  Nc6 {[%clk 0:00:40]} 25. Qc1 {[%clk 0:00:19]}  Qe8 {[%clk 0:00:39]} 26. Bd5 {[%clk 0:00:17]}  Nd8 {[%clk 0:00:38]} 27. Bc4 {[%clk 0:00:11]}  Ne6 {[%clk 0:00:25]} 28. dxe5 {[%clk 0:00:06]}  dxe5 {[%clk 0:00:26]} 29. Qc2 {[%clk 0:00:03]}  Nf4 {[%clk 0:00:26]} 30. Kh1 {[%clk 0:00:02]}  Bc6 {[%clk 0:00:25]} 31. Ne2 {[%clk 0:00:03]}  Nh5 {[%clk 0:00:24]} 32. Bd5 {[%clk 0:00:03]}  Bd7 {[%clk 0:00:24]} 33. Ng3 {[%clk 0:00:03]}  Nxg3+ {[%clk 0:00:24]} 34. fxg3 {[%clk 0:00:03]}  Nf6 {[%clk 0:00:25]} 35. Kh2 {[%clk 0:00:02]}  Nh5 {[%clk 0:00:16]} 36. g4 {[%clk 0:00:02]}  Nf4 {[%clk 0:00:16]} 37. Bc4 {[%clk 0:00:02]}  f5 {[%clk 0:00:15]} 38. exf5 {[%clk 0:00:03]}  gxf5 {[%clk 0:00:15]} 39. Bxf4 {[%clk 0:00:02]}  exf4 {[%clk 0:00:15]} 40. Rxe7 {[%clk 0:00:02]}  Qxe7 {[%clk 0:00:16]} 41. gxf5 {[%clk 0:00:02]}  Bxf5 {[%clk 0:00:16]} 42. Qf2 {[%clk 0:00:03]}  Bxc3 {[%clk 0:00:15]} 43. Nh4 {[%clk 0:00:03]}  Bh7 {[%clk 0:00:15]} 44. Bd3 {[%clk 0:00:03]}  Qe3 {[%clk 0:00:13]} 45. Qf1 {[%clk 0:00:02]}  Qg3+ {[%clk 0:00:12]} 46. Kh1 {[%clk 0:00:03]}  Qxh4 {[%clk 0:00:10]} 47. Bxh7 {[%clk 0:00:03]}  f3 {[%clk 0:00:09]} 48. gxf3 {[%clk 0:00:01]}  Kxh7 {[%clk 0:00:05]} 49. Qd3+ {[%clk 0:00:01]}  Kg8 {[%clk 0:00:05]} 50. Rg1+ {[%clk 0:00:01]}  Bg7 {[%clk 0:00:05]} 51. Qc4+ {[%clk 0:00:02]}  Rf7 {[%clk 0:00:05]} 52. Qxh4 {[%clk 0:00:02]} 1-0


[Site "https://www.chess.com"]

[Event "Titled Tuesday Blitz March 21 Early 2023"]
[White "Jones, Gawain C B"]
[Black "Kramnik, Vladimir"]
[WhiteFideId "409561"]
[BlackFideId "4101588"]
[WhiteElo "2645"]
[BlackElo "2712"]
[Result "1-0"]
[Round "07"]
[TimeControl "180+2"]
[Date "2023.03.21"]
[WhiteClock "0:00:08"]
[BlackClock "0:00:01"]

1. Nf3 {[%clk 0:02:58]}  Nf6 {[%clk 0:02:58]} 2. g3 {[%clk 0:02:59]}  b5 {[%clk 0:02:58]} 3. Bg2 {[%clk 0:02:59]}  Bb7 {[%clk 0:02:58]} 4. Na3 {[%clk 0:02:59]}  a6 {[%clk 0:02:54]} 5. c4 {[%clk 0:02:59]}  e6 {[%clk 0:02:54]} 6. cxb5 {[%clk 0:02:57]}  Bxa3 {[%clk 0:02:53]} 7. bxa6 {[%clk 0:02:45]}  Rxa6 {[%clk 0:02:53]} 8. bxa3 {[%clk 0:02:44]}  d6 {[%clk 0:02:53]} 9. O-O {[%clk 0:02:37]}  Nbd7 {[%clk 0:02:51]} 10. d3 {[%clk 0:02:34]}  O-O {[%clk 0:02:50]} 11. Bb2 {[%clk 0:02:26]}  Qa8 {[%clk 0:02:44]} 12. Rc1 {[%clk 0:02:19]}  c5 {[%clk 0:02:42]} 13. e4 {[%clk 0:02:09]}  Rb8 {[%clk 0:02:41]} 14. Rc2 {[%clk 0:02:02]}  Bc6 {[%clk 0:02:40]} 15. Qa1 {[%clk 0:01:58]}  h6 {[%clk 0:02:32]} 16. h4 {[%clk 0:01:48]}  Ra4 {[%clk 0:02:32]} 17. Re1 {[%clk 0:01:31]}  Qa6 {[%clk 0:02:20]} 18. Bf1 {[%clk 0:01:25]}  Bb5 {[%clk 0:02:11]} 19. e5 {[%clk 0:01:18]}  Ne8 {[%clk 0:01:44]} 20. exd6 {[%clk 0:01:12]}  Bxd3 {[%clk 0:01:44]} 21. Ne5 {[%clk 0:01:03]}  Nxe5 {[%clk 0:01:20]} 22. Bxe5 {[%clk 0:01:03]}  Rd8 {[%clk 0:01:13]} 23. Bxd3 {[%clk 0:00:56]}  Qxd3 {[%clk 0:01:12]} 24. Rxc5 {[%clk 0:00:55]}  f6 {[%clk 0:01:02]} 25. Rd1 {[%clk 0:00:44]}  Qxa3 {[%clk 0:00:56]} 26. Rc3 {[%clk 0:00:41]}  Qxa2 {[%clk 0:00:23]} 27. Qxa2 {[%clk 0:00:41]}  Rxa2 {[%clk 0:00:24]} 28. d7 {[%clk 0:00:41]}  Raa8 {[%clk 0:00:17]} 29. Bf4 {[%clk 0:00:31]}  e5 {[%clk 0:00:14]} 30. dxe8=Q+ {[%clk 0:00:27]}  Rxe8 {[%clk 0:00:13]} 31. Be3 {[%clk 0:00:27]}  Re7 {[%clk 0:00:13]} 32. Rdc1 {[%clk 0:00:26]}  h5 {[%clk 0:00:13]} 33. Rc7 {[%clk 0:00:26]}  Rxc7 {[%clk 0:00:12]} 34. Rxc7 {[%clk 0:00:27]}  Kh7 {[%clk 0:00:12]} 35. Kg2 {[%clk 0:00:26]}  Kg6 {[%clk 0:00:12]} 36. Kf3 {[%clk 0:00:27]}  Rb8 {[%clk 0:00:10]} 37. Ke4 {[%clk 0:00:25]}  Ra8 {[%clk 0:00:10]} 38. Kd5 {[%clk 0:00:25]}  Rb8 {[%clk 0:00:10]} 39. Bc5 {[%clk 0:00:24]}  Re8 {[%clk 0:00:09]} 40. Bd6 {[%clk 0:00:20]}  Ra8 {[%clk 0:00:08]} 41. f4 {[%clk 0:00:19]}  exf4 {[%clk 0:00:06]} 42. gxf4 {[%clk 0:00:19]}  Re8 {[%clk 0:00:05]} 43. Rd7 {[%clk 0:00:13]}  Ra8 {[%clk 0:00:02]} 44. Ke6 {[%clk 0:00:13]}  Re8+ {[%clk 0:00:01]} 45. Re7 {[%clk 0:00:12]}  Ra8 {[%clk 0:00:01]} 46. f5+ {[%clk 0:00:12]}  Kh7 {[%clk 0:00:01]} 47. Rd7 {[%clk 0:00:09]}  Re8+ {[%clk 0:00:01]} 48. Kf7 {[%clk 0:00:09]}  Ra8 {[%clk 0:00:01]} 49. Bf8 {[%clk 0:00:08]} 1-0


[Site "https://www.chess.com"]

[Event "Titled Tuesday Blitz March 21 Early 2023"]
[White "Ter-Sahakyan, Samvel"]
[Black "Smirnov, Pavel"]
[WhiteFideId "13302531"]
[BlackFideId "4123425"]
[WhiteElo "2566"]
[BlackElo "2519"]
[Result "0-1"]
[Round "07"]
[TimeControl "180+2"]
[Date "2023.03.21"]
[WhiteClock "0:00:04"]
[BlackClock "0:00:03"]

1. d4 {[%clk 0:03:00]}  Nf6 {[%clk 0:02:59]} 2. c4 {[%clk 0:03:00]}  e6 {[%clk 0:03:00]} 3. Nf3 {[%clk 0:03:00]}  d5 {[%clk 0:03:00]} 4. g3 {[%clk 0:03:00]}  Be7 {[%clk 0:03:00]} 5. Bg2 {[%clk 0:03:00]}  O-O {[%clk 0:03:01]} 6. O-O {[%clk 0:03:00]}  c6 {[%clk 0:03:02]} 7. Qc2 {[%clk 0:02:52]}  b6 {[%clk 0:03:02]} 8. Bf4 {[%clk 0:02:49]}  Nh5 {[%clk 0:02:57]} 9. e3 {[%clk 0:02:43]}  Nxf4 {[%clk 0:02:39]} 10. exf4 {[%clk 0:02:43]}  Ba6 {[%clk 0:02:38]} 11. Nbd2 {[%clk 0:02:37]}  Nd7 {[%clk 0:02:37]} 12. Rfe1 {[%clk 0:02:26]}  Rc8 {[%clk 0:02:29]} 13. cxd5 {[%clk 0:02:22]}  cxd5 {[%clk 0:02:22]} 14. Qa4 {[%clk 0:02:22]}  Bd3 {[%clk 0:02:13]} 15. Rac1 {[%clk 0:01:52]}  a6 {[%clk 0:02:12]} 16. Qb3 {[%clk 0:01:47]}  Bg6 {[%clk 0:02:09]} 17. a4 {[%clk 0:01:42]}  a5 {[%clk 0:01:54]} 18. Bf1 {[%clk 0:01:37]}  Bb4 {[%clk 0:01:53]} 19. Ba6 {[%clk 0:01:27]}  Ra8 {[%clk 0:01:36]} 20. Bd3 {[%clk 0:01:26]}  Bxd3 {[%clk 0:01:28]} 21. Qxd3 {[%clk 0:01:26]}  Rc8 {[%clk 0:01:26]} 22. Rc2 {[%clk 0:01:10]}  Rxc2 {[%clk 0:01:18]} 23. Qxc2 {[%clk 0:01:11]}  Bd6 {[%clk 0:00:57]} 24. f5 {[%clk 0:00:46]}  exf5 {[%clk 0:00:58]} 25. Qxf5 {[%clk 0:00:44]}  Nf6 {[%clk 0:00:57]} 26. Nf1 {[%clk 0:00:42]}  Qc7 {[%clk 0:00:51]} 27. Ne3 {[%clk 0:00:39]}  Qc6 {[%clk 0:00:51]} 28. b3 {[%clk 0:00:11]}  b5 {[%clk 0:00:51]} 29. Ne5 {[%clk 0:00:06]}  Qc3 {[%clk 0:00:42]} 30. Nf3 {[%clk 0:00:05]}  Qxb3 {[%clk 0:00:39]} 31. axb5 {[%clk 0:00:05]}  Qxb5 {[%clk 0:00:39]} 32. g4 {[%clk 0:00:05]}  Bb4 {[%clk 0:00:26]} 33. Rf1 {[%clk 0:00:05]}  Rd8 {[%clk 0:00:20]} 34. g5 {[%clk 0:00:04]}  Ne4 {[%clk 0:00:16]} 35. Ne5 {[%clk 0:00:04]}  Nd6 {[%clk 0:00:16]} 36. Qf3 {[%clk 0:00:03]}  a4 {[%clk 0:00:10]} 37. Nxd5 {[%clk 0:00:04]}  Ba5 {[%clk 0:00:06]} 38. Ne7+ {[%clk 0:00:04]}  Kh8 {[%clk 0:00:06]} 39. N7c6 {[%clk 0:00:04]}  Rf8 {[%clk 0:00:04]} 40. Rc1 {[%clk 0:00:02]}  Bd2 {[%clk 0:00:03]} 41. Rd1 {[%clk 0:00:02]}  Bxg5 {[%clk 0:00:03]} 42. Qh5 {[%clk 0:00:02]}  Bf6 {[%clk 0:00:03]} 43. Kg2 {[%clk 0:00:02]}  a3 {[%clk 0:00:03]} 44. Qf3 {[%clk 0:00:02]}  a2 {[%clk 0:00:03]} 45. Ra1 {[%clk 0:00:02]}  Qb2 {[%clk 0:00:03]} 46. Qd1 {[%clk 0:00:03]}  Ne4 {[%clk 0:00:03]} 47. Nd3 {[%clk 0:00:02]}  Qc3 {[%clk 0:00:03]} 48. Nce5 {[%clk 0:00:02]}  Qxd4 {[%clk 0:00:03]} 49. Rxa2 {[%clk 0:00:03]}  Bxe5 {[%clk 0:00:02]} 50. Qe2 {[%clk 0:00:03]}  Qd5 {[%clk 0:00:03]} 51. Qf3 {[%clk 0:00:03]}  Qxa2 {[%clk 0:00:02]} 52. Nxe5 {[%clk 0:00:04]}  Qe6 {[%clk 0:00:02]} 53. Qxe4 {[%clk 0:00:04]}  Re8 {[%clk 0:00:03]} 54. f4 {[%clk 0:00:02]}  f6 {[%clk 0:00:03]} 55. Ng6+ {[%clk 0:00:03]}  hxg6 {[%clk 0:00:03]} 56. Qxg6 {[%clk 0:00:04]}  Qe4+ {[%clk 0:00:03]} 0-1


[Site "https://www.chess.com"]

[Event "Titled Tuesday Blitz March 21 Early 2023"]
[White "Postny, Evgeny"]
[Black "Indjic, Aleksandar"]
[WhiteFideId "2804344"]
[BlackFideId "911925"]
[WhiteElo "2509"]
[BlackElo "2614"]
[Result "1-0"]
[Round "07"]
[TimeControl "180+2"]
[Date "2023.03.21"]
[WhiteClock "0:00:04"]
[BlackClock "0:00:20"]

1. Nf3 {[%clk 0:02:42]}  Nf6 {[%clk 0:02:59]} 2. c4 {[%clk 0:02:42]}  e6 {[%clk 0:02:59]} 3. g3 {[%clk 0:02:43]}  a6 {[%clk 0:02:59]} 4. Bg2 {[%clk 0:02:43]}  b5 {[%clk 0:02:59]} 5. cxb5 {[%clk 0:02:43]}  axb5 {[%clk 0:02:59]} 6. Nd4 {[%clk 0:02:42]}  Ra5 {[%clk 0:02:45]} 7. O-O {[%clk 0:02:30]}  c5 {[%clk 0:02:45]} 8. Nb3 {[%clk 0:02:29]}  Ra7 {[%clk 0:02:42]} 9. d4 {[%clk 0:02:28]}  c4 {[%clk 0:02:42]} 10. N3d2 {[%clk 0:02:28]}  d5 {[%clk 0:02:39]} 11. e4 {[%clk 0:02:27]}  b4 {[%clk 0:02:35]} 12. exd5 {[%clk 0:02:21]}  exd5 {[%clk 0:02:34]} 13. Nf3 {[%clk 0:02:09]}  Be7 {[%clk 0:02:29]} 14. Bf4 {[%clk 0:02:08]}  Nc6 {[%clk 0:02:24]} 15. Ne5 {[%clk 0:02:08]}  Qb6 {[%clk 0:02:22]} 16. Nd2 {[%clk 0:02:02]}  Na5 {[%clk 0:02:22]} 17. Qa4+ {[%clk 0:01:48]}  Kf8 {[%clk 0:02:13]} 18. Qd1 {[%clk 0:01:37]}  h6 {[%clk 0:02:13]} 19. Ndf3 {[%clk 0:01:30]}  Bf5 {[%clk 0:02:01]} 20. Re1 {[%clk 0:01:26]}  Kg8 {[%clk 0:01:52]} 21. Nh4 {[%clk 0:01:22]}  Be6 {[%clk 0:01:52]} 22. Be3 {[%clk 0:01:16]}  Nd7 {[%clk 0:01:47]} 23. Nhf3 {[%clk 0:01:05]}  Nc6 {[%clk 0:01:42]} 24. Nxc4 {[%clk 0:01:02]}  dxc4 {[%clk 0:01:24]} 25. d5 {[%clk 0:01:03]}  Nc5 {[%clk 0:01:17]} 26. dxe6 {[%clk 0:01:02]}  fxe6 {[%clk 0:01:17]} 27. Nd4 {[%clk 0:00:56]}  Ne5 {[%clk 0:01:12]} 28. Qh5 {[%clk 0:00:50]}  Ned3 {[%clk 0:01:06]} 29. Nxe6 {[%clk 0:00:44]}  Nxe1 {[%clk 0:00:39]} 30. Rxe1 {[%clk 0:00:45]}  Qxe6 {[%clk 0:00:26]} 31. Bd5 {[%clk 0:00:44]}  Rd7 {[%clk 0:00:27]} 32. Bxe6+ {[%clk 0:00:41]}  Nxe6 {[%clk 0:00:27]} 33. Qe8+ {[%clk 0:00:29]}  Nf8 {[%clk 0:00:27]} 34. Bf4 {[%clk 0:00:30]}  Bf6 {[%clk 0:00:25]} 35. Qc8 {[%clk 0:00:29]}  c3 {[%clk 0:00:24]} 36. bxc3 {[%clk 0:00:28]}  bxc3 {[%clk 0:00:25]} 37. Re8 {[%clk 0:00:25]}  Rd1+ {[%clk 0:00:22]} 38. Kg2 {[%clk 0:00:25]}  Kf7 {[%clk 0:00:22]} 39. Re2 {[%clk 0:00:14]}  Kg6 {[%clk 0:00:20]} 40. Qg4+ {[%clk 0:00:13]}  Kh7 {[%clk 0:00:20]} 41. Qf5+ {[%clk 0:00:13]}  Ng6 {[%clk 0:00:20]} 42. h4 {[%clk 0:00:13]}  Bxh4 {[%clk 0:00:20]} 43. gxh4 {[%clk 0:00:12]}  Rf8 {[%clk 0:00:20]} 44. Qc2 {[%clk 0:00:12]}  Rd5 {[%clk 0:00:19]} 45. Bg3 {[%clk 0:00:12]}  Rdf5 {[%clk 0:00:19]} 46. Qxc3 {[%clk 0:00:11]}  Nf4+ {[%clk 0:00:19]} 47. Bxf4 {[%clk 0:00:10]}  Rxf4 {[%clk 0:00:19]} 48. Qd3+ {[%clk 0:00:10]}  Kh8 {[%clk 0:00:19]} 49. Qg3 {[%clk 0:00:10]}  R4f6 {[%clk 0:00:18]} 50. a4 {[%clk 0:00:09]}  Kh7 {[%clk 0:00:18]} 51. Ra2 {[%clk 0:00:09]}  Rg6 {[%clk 0:00:19]} 52. a5 {[%clk 0:00:08]}  Ra8 {[%clk 0:00:19]} 53. Qxg6+ {[%clk 0:00:04]}  Kxg6 {[%clk 0:00:18]} 54. a6 {[%clk 0:00:05]}  Ra7 {[%clk 0:00:18]} 55. Kg3 {[%clk 0:00:05]}  Kf6 {[%clk 0:00:18]} 56. Kf4 {[%clk 0:00:05]}  g5+ {[%clk 0:00:16]} 57. hxg5+ {[%clk 0:00:05]}  hxg5+ {[%clk 0:00:17]} 58. Kg4 {[%clk 0:00:06]}  Kg6 {[%clk 0:00:17]} 59. Ra3 {[%clk 0:00:06]}  Kf6 {[%clk 0:00:17]} 60. Ra5 {[%clk 0:00:06]}  Kg6 {[%clk 0:00:14]} 61. Rxg5+ {[%clk 0:00:06]}  Kf6 {[%clk 0:00:15]} 62. Ra5 {[%clk 0:00:06]}  Ke6 {[%clk 0:00:16]} 63. f4 {[%clk 0:00:06]}  Kd6 {[%clk 0:00:17]} 64. f5 {[%clk 0:00:05]}  Kc7 {[%clk 0:00:17]} 65. Kg5 {[%clk 0:00:05]}  Kb6 {[%clk 0:00:18]} 66. Ra2 {[%clk 0:00:06]}  Kc7 {[%clk 0:00:18]} 67. f6 {[%clk 0:00:05]}  Kb8 {[%clk 0:00:18]} 68. Kg6 {[%clk 0:00:04]}  Ka8 {[%clk 0:00:19]} 69. f7 {[%clk 0:00:04]}  Rxf7 {[%clk 0:00:20]} 70. Kxf7 {[%clk 0:00:04]} 1-0


[Site "https://www.chess.com"]

[Event "Titled Tuesday Blitz March 21 Early 2023"]
[White "Tanenbaum, Zachary"]
[Black "Kamsky, Gata"]
[WhiteFideId "2060850"]
[BlackFideId "2000024"]
[WhiteElo "2175"]
[BlackElo "2666"]
[Result "0-1"]
[Round "07"]
[TimeControl "180+2"]
[Date "2023.03.21"]
[WhiteClock "0:00:01"]
[BlackClock "0:00:05"]

1. e4 {[%clk 0:03:00]}  e5 {[%clk 0:02:57]} 2. Nf3 {[%clk 0:03:00]}  Nc6 {[%clk 0:02:58]} 3. Bc4 {[%clk 0:03:01]}  Bc5 {[%clk 0:02:54]} 4. c3 {[%clk 0:03:01]}  Nf6 {[%clk 0:02:54]} 5. d4 {[%clk 0:03:02]}  exd4 {[%clk 0:02:54]} 6. b4 {[%clk 0:03:03]}  Be7 {[%clk 0:02:10]} 7. e5 {[%clk 0:03:02]}  Ne4 {[%clk 0:01:58]} 8. b5 {[%clk 0:03:00]}  Na5 {[%clk 0:01:43]} 9. Bd3 {[%clk 0:02:54]}  Nxc3 {[%clk 0:01:39]} 10. Nxc3 {[%clk 0:02:54]}  dxc3 {[%clk 0:01:39]} 11. O-O {[%clk 0:02:53]}  d5 {[%clk 0:01:37]} 12. exd6 {[%clk 0:02:48]}  Qxd6 {[%clk 0:01:36]} 13. Qc2 {[%clk 0:02:45]}  h6 {[%clk 0:01:14]} 14. Qxc3 {[%clk 0:02:44]}  O-O {[%clk 0:01:09]} 15. Rd1 {[%clk 0:02:38]}  Qb4 {[%clk 0:01:07]} 16. Qxc7 {[%clk 0:02:21]}  b6 {[%clk 0:00:41]} 17. Be3 {[%clk 0:01:37]}  Bb7 {[%clk 0:00:36]} 18. a3 {[%clk 0:01:36]}  Qg4 {[%clk 0:00:33]} 19. h3 {[%clk 0:01:36]}  Qe6 {[%clk 0:00:29]} 20. Qg3 {[%clk 0:01:09]}  Rad8 {[%clk 0:00:23]} 21. Nd4 {[%clk 0:01:05]}  Qf6 {[%clk 0:00:18]} 22. Nf5 {[%clk 0:01:05]}  Kh8 {[%clk 0:00:18]} 23. Bf4 {[%clk 0:00:57]}  Rd5 {[%clk 0:00:14]} 24. Re1 {[%clk 0:00:52]}  Rxf5 {[%clk 0:00:11]} 25. Bxf5 {[%clk 0:00:51]}  Bc5 {[%clk 0:00:10]} 26. Be5 {[%clk 0:00:50]}  Qg5 {[%clk 0:00:10]} 27. Qxg5 {[%clk 0:00:49]}  hxg5 {[%clk 0:00:10]} 28. Rad1 {[%clk 0:00:48]}  Kg8 {[%clk 0:00:09]} 29. Rd7 {[%clk 0:00:48]}  Bc8 {[%clk 0:00:09]} 30. Red1 {[%clk 0:00:39]}  Bxd7 {[%clk 0:00:09]} 31. Rxd7 {[%clk 0:00:40]}  Nc4 {[%clk 0:00:09]} 32. Bg3 {[%clk 0:00:29]}  Bxa3 {[%clk 0:00:08]} 33. Rxa7 {[%clk 0:00:28]}  Bc5 {[%clk 0:00:09]} 34. Bd3 {[%clk 0:00:22]}  Nd2 {[%clk 0:00:07]} 35. Rd7 {[%clk 0:00:20]}  Re8 {[%clk 0:00:06]} 36. Bf1 {[%clk 0:00:11]}  Nxf1 {[%clk 0:00:05]} 37. Kxf1 {[%clk 0:00:10]}  f6 {[%clk 0:00:06]} 38. f4 {[%clk 0:00:09]}  gxf4 {[%clk 0:00:05]} 39. Bxf4 {[%clk 0:00:10]}  Re4 {[%clk 0:00:06]} 40. Bg3 {[%clk 0:00:09]}  Rb4 {[%clk 0:00:06]} 41. Bd6 {[%clk 0:00:03]}  Rxb5 {[%clk 0:00:04]} 42. Rd8+ {[%clk 0:00:03]}  Kf7 {[%clk 0:00:04]} 43. Bxc5 {[%clk 0:00:02]}  Rxc5 {[%clk 0:00:04]} 44. Rb8 {[%clk 0:00:02]}  b5 {[%clk 0:00:05]} 45. Rb7+ {[%clk 0:00:02]}  Kg6 {[%clk 0:00:05]} 46. Kf2 {[%clk 0:00:03]}  Re5 {[%clk 0:00:05]} 47. Kf3 {[%clk 0:00:01]}  Kh6 {[%clk 0:00:05]} 48. g4 {[%clk 0:00:01]}  g5 {[%clk 0:00:05]} 0-1


[Site "https://www.chess.com"]

[Event "Titled Tuesday Blitz March 21 Early 2023"]
[White "Kaufman, Raymond"]
[Black "Drygalov, Sergey"]
[WhiteFideId "2015056"]
[BlackFideId "24171743"]
[WhiteElo "2321"]
[BlackElo "2533"]
[Result "0-1"]
[Round "07"]
[TimeControl "180+2"]
[Date "2023.03.21"]
[WhiteClock "0:02:20"]
[BlackClock "0:02:00"]

1. c4 {[%clk 0:03:00]}  e5 {[%clk 0:02:29]} 2. Nc3 {[%clk 0:02:57]}  Nf6 {[%clk 0:02:29]} 3. Nf3 {[%clk 0:02:56]}  Nc6 {[%clk 0:02:29]} 4. d3 {[%clk 0:02:48]}  d5 {[%clk 0:02:27]} 5. cxd5 {[%clk 0:02:47]}  Nxd5 {[%clk 0:02:27]} 6. Bd2 {[%clk 0:02:45]}  Bg4 {[%clk 0:02:25]} 7. Qa4 {[%clk 0:02:37]}  Bxf3 {[%clk 0:02:19]} 8. gxf3 {[%clk 0:02:38]}  Nb6 {[%clk 0:02:11]} 9. Qb3 {[%clk 0:02:32]}  Qd7 {[%clk 0:02:04]} 10. h4 {[%clk 0:02:30]}  O-O-O {[%clk 0:02:01]} 11. Bh3 {[%clk 0:02:21]}  f5 {[%clk 0:02:01]} 12. O-O-O {[%clk 0:02:20]}  Nd4 {[%clk 0:02:00]} 0-1


[Site "https://www.chess.com"]